[Event "*** Titled Tuesday 3|2 Blitz"]
[Site "Chess.com"]
[Date "2016.06.07"]
[Round "6"]
[White "hangemhigh"]
[Black "ilya261991"]
[Result "0-1"]
[WhiteElo "2222"]
[BlackElo "2518"]
[TimeControl "180+2"]
[EndTime "18:13:46 PDT"]
[Termination "ilya261991 won by checkmate"]

1. d4 {[%clk 0:02:56.7]} 1... Nf6 {[%clk 0:02:59.5]} 2. Nf3 {[%clk 0:02:55.4]}
2... g6 {[%clk 0:03:00]} 3. Nc3 {[%clk 0:02:54.3]} 3... d5 {[%clk 0:02:59.2]} 4.
Bf4 {[%clk 0:02:52]} 4... Bg7 {[%clk 0:02:58.1]} 5. e3 {[%clk 0:02:49.5]} 5...
O-O {[%clk 0:02:57.8]} 6. Be2 {[%clk 0:02:49.6]} 6... c5 {[%clk 0:02:58.4]} 7.
h3 {[%clk 0:02:31.9]} 7... cxd4 {[%clk 0:02:57.4]} 8. exd4 {[%clk 0:02:31.6]}
8... Nc6 {[%clk 0:02:57.2]} 9. O-O {[%clk 0:02:28.7]} 9... Bf5 {[%clk
0:02:55.5]} 10. Ne5 {[%clk 0:02:24.5]} 10... Rc8 {[%clk 0:02:49.9]} 11. Re1
{[%clk 0:02:14.4]} 11... Ne4 {[%clk 0:02:26.4]} 12. Nxe4 {[%clk 0:02:09.3]}
12... Bxe4 {[%clk 0:02:27.1]} 13. Nxc6 {[%clk 0:02:07.9]} 13... Rxc6 {[%clk
0:02:23.6]} 14. c3 {[%clk 0:02:08]} 14... a6 {[%clk 0:02:21.1]} 15. Qd2 {[%clk
0:02:07.2]} 15... b5 {[%clk 0:02:19.6]} 16. Bf1 {[%clk 0:01:58.7]} 16... Re8
{[%clk 0:02:12.8]} 17. a4 {[%clk 0:01:35.4]} 17... Qb6 {[%clk 0:02:09]} 18. axb5
{[%clk 0:01:34.3]} 18... axb5 {[%clk 0:02:09]} 19. f3 {[%clk 0:01:16.8]} 19...
Bf5 {[%clk 0:02:09]} 20. Kh2 {[%clk 0:01:06.9]} 20... Rcc8 {[%clk 0:01:54.7]}
21. b4 {[%clk 0:01:02.3]} 21... Bd7 {[%clk 0:01:50.9]} 22. Be5 {[%clk
0:00:57.7]} 22... Bf8 {[%clk 0:01:50.1]} 23. Re2 {[%clk 0:00:59.6]} 23... Qc6
{[%clk 0:01:41.9]} 24. Ra3 {[%clk 0:00:44.4]} 24... f6 {[%clk 0:01:39.4]} 25.
Bg3 {[%clk 0:00:42.3]} 25... Bg7 {[%clk 0:01:35.1]} 26. Re1 {[%clk 0:00:38.4]}
26... e5 {[%clk 0:01:29.1]} 27. dxe5 {[%clk 0:00:30.3]} 27... fxe5 {[%clk
0:01:29.9]} 28. Ra5 {[%clk 0:00:24.9]} 28... Qxc3 {[%clk 0:01:26.9]} 29. Qxd5+
{[%clk 0:00:21.8]} 29... Be6 {[%clk 0:01:27.8]} 30. Qxb5 {[%clk 0:00:21]} 30...
Rb8 {[%clk 0:01:27.7]} 31. Qc5 {[%clk 0:00:17.5]} 31... Qxb4 {[%clk 0:01:22.1]}
32. Qxb4 {[%clk 0:00:15]} 32... Rxb4 {[%clk 0:01:23.2]} 33. Bxe5 {[%clk
0:00:13.6]} 33... Bh6 {[%clk 0:01:21.9]} 34. Bg3 {[%clk 0:00:11.7]} 34... Rb6
{[%clk 0:01:05.3]} 35. Rae5 {[%clk 0:00:10.7]} 35... Kf7 {[%clk 0:01:05.5]} 36.
h4 {[%clk 0:00:10]} 36... Bg7 {[%clk 0:01:05.8]} 37. R5e3 {[%clk 0:00:10.2]}
37... Bd4 {[%clk 0:01:05.3]} 38. Re4 {[%clk 0:00:10.6]} 38... Bc3 {[%clk
0:01:04.5]} 39. Rc1 {[%clk 0:00:10.3]} 39... Bf6 {[%clk 0:01:01.7]} 40. Rc7+
{[%clk 0:00:10.6]} 40... Re7 {[%clk 0:01:03.3]} 41. Rxe7+ {[%clk 0:00:10.5]}
41... Bxe7 {[%clk 0:01:04.6]} 42. Bc4 {[%clk 0:00:10.3]} 42... Bxc4 {[%clk
0:01:04.4]} 43. Rxc4 {[%clk 0:00:12.2]} 43... Re6 {[%clk 0:01:04.7]} 44. Re4
{[%clk 0:00:12.4]} 44... Rc6 {[%clk 0:01:04.7]} 45. h5 {[%clk 0:00:12.3]} 45...
gxh5 {[%clk 0:01:05.1]} 46. Kh3 {[%clk 0:00:13.3]} 46... Bf6 {[%clk 0:01:04]}
47. Bf2 {[%clk 0:00:13.7]} 47... Rc1 {[%clk 0:01:03.2]} 48. Be3 {[%clk
0:00:14.3]} 48... Rh1+ {[%clk 0:01:03]} 49. Kg3 {[%clk 0:00:15.2]} 49... Kg6
{[%clk 0:01:02.7]} 50. Kf2 {[%clk 0:00:16]} 50... Bh4+ {[%clk 0:01:01.3]} 51. g3
{[%clk 0:00:16.5]} 51... Rh2+ {[%clk 0:01:02.6]} 52. Kg1 {[%clk 0:00:14.6]}
52... Bxg3 {[%clk 0:01:04]} 53. Re6+ {[%clk 0:00:13.5]} 53... Kf5 {[%clk
0:01:00.9]} 54. Rh6 {[%clk 0:00:13.4]} 54... h4 {[%clk 0:00:55.6]} 55. Rxh7
{[%clk 0:00:14]} 55... Re2 {[%clk 0:00:56.4]} 56. Rh5+ {[%clk 0:00:13.8]} 56...
Kg6 {[%clk 0:00:55.7]} 57. Rh6+ {[%clk 0:00:13.6]} 57... Kg7 {[%clk 0:00:55.5]}
58. Bg5 {[%clk 0:00:14.2]} 58... Ra2 {[%clk 0:00:38.8]} 59. f4 {[%clk
0:00:14.2]} 59... Rh2 {[%clk 0:00:38.8]} 60. f5 {[%clk 0:00:13.8]} 60... h3
{[%clk 0:00:38.8]} 61. f6+ {[%clk 0:00:14.3]} 61... Kf7 {[%clk 0:00:40.1]} 62.
Rh7+ {[%clk 0:00:14.8]} 62... Kg6 {[%clk 0:00:34.4]} 63. Rg7+ {[%clk 0:00:14.2]}
63... Kh5 {[%clk 0:00:35.6]} 64. f7 {[%clk 0:00:12.7]} 64... Rg2+ {[%clk
0:00:35.7]} 65. Kh1 {[%clk 0:00:12.6]} 65... Rf2 {[%clk 0:00:35.8]} 66. Bf6
{[%clk 0:00:08.9]} 66... Rf1# {[%clk 0:00:35.8]} 0-1

[Event "*** Titled Tuesday 3|2 Blitz"]
[Site "Chess.com"]
[Date "2016.06.07"]
[Round "6"]
[White "JusticeBot"]
[Black "GianmarcoVaR"]
[Result "1-0"]
[WhiteElo "2538"]
[BlackElo "2350"]
[TimeControl "180+2"]
[EndTime "18:14:06 PDT"]
[Termination "JusticeBot won by checkmate"]

1. e4 {[%clk 0:03:01.9]} 1... c6 {[%clk 0:02:51.9]} 2. d4 {[%clk 0:03:02.5]}
2... d5 {[%clk 0:02:51.3]} 3. Nc3 {[%clk 0:03:04.4]} 3... dxe4 {[%clk
0:02:52.2]} 4. Nxe4 {[%clk 0:03:06.3]} 4... Bf5 {[%clk 0:02:53.6]} 5. Ng3 {[%clk
0:03:07.6]} 5... Bg6 {[%clk 0:02:55.2]} 6. N1e2 {[%clk 0:03:09.5]} 6... Nf6
{[%clk 0:02:54.1]} 7. Nf4 {[%clk 0:03:10.4]} 7... e5 {[%clk 0:02:53.7]} 8. Nxg6
{[%clk 0:03:11.7]} 8... hxg6 {[%clk 0:02:53.4]} 9. dxe5 {[%clk 0:03:13.3]} 9...
Qa5+ {[%clk 0:02:53.4]} 10. Bd2 {[%clk 0:03:13.7]} 10... Qxe5+ {[%clk
0:02:54.8]} 11. Qe2 {[%clk 0:03:15.5]} 11... Nbd7 {[%clk 0:02:56.2]} 12. Qxe5+
{[%clk 0:03:14.8]} 12... Nxe5 {[%clk 0:02:57.1]} 13. f4 {[%clk 0:03:16.7]} 13...
Neg4 {[%clk 0:02:55.5]} 14. h3 {[%clk 0:03:12.6]} 14... Nh6 {[%clk 0:02:55.4]}
15. Bc4 {[%clk 0:03:11.7]} 15... Bc5 {[%clk 0:02:52.4]} 16. Rf1 {[%clk
0:02:56.5]} 16... O-O-O {[%clk 0:02:37.6]} 17. O-O-O {[%clk 0:02:55.3]} 17...
Rhe8 {[%clk 0:02:35]} 18. f5 {[%clk 0:02:50.6]} 18... Nxf5 {[%clk 0:02:20.5]}
19. Nxf5 {[%clk 0:02:43.5]} 19... gxf5 {[%clk 0:02:21.7]} 20. Rxf5 {[%clk
0:02:37.7]} 20... Rd7 {[%clk 0:02:21.6]} 21. Rxc5 {[%clk 0:02:37.9]} 21... Ne4
{[%clk 0:02:12.3]} 22. Bb4 {[%clk 0:01:53.9]} 22... Rxd1+ {[%clk 0:01:45]} 23.
Kxd1 {[%clk 0:01:55.8]} 23... Nxc5 {[%clk 0:01:45.2]} 24. Bxc5 {[%clk
0:01:56.1]} 24... f6 {[%clk 0:01:46]} 25. Bxa7 {[%clk 0:01:55.8]} 25... Re4
{[%clk 0:01:42.7]} 26. Bd3 {[%clk 0:01:27.4]} 26... Ra4 {[%clk 0:01:43.5]} 27.
Bc5 {[%clk 0:01:28.6]} 27... Rxa2 {[%clk 0:01:43.2]} 28. Bf8 {[%clk 0:01:30.1]}
28... g6 {[%clk 0:01:15.2]} 29. Bxg6 {[%clk 0:01:29.1]} 29... Rxb2 {[%clk
0:01:13.8]} 30. Bg7 {[%clk 0:01:26.8]} 30... Rb1+ {[%clk 0:01:12.3]} 31. Ke2
{[%clk 0:01:27.3]} 31... Kd7 {[%clk 0:01:01.7]} 32. Bxf6 {[%clk 0:01:24.6]}
32... Ke6 {[%clk 0:01:03.3]} 33. Bd4 {[%clk 0:01:13]} 33... b5 {[%clk
0:00:57.8]} 34. h4 {[%clk 0:01:11.7]} 34... Rh1 {[%clk 0:00:57.9]} 35. h5 {[%clk
0:01:10.8]} 35... Kd5 {[%clk 0:00:59.3]} 36. Bg7 {[%clk 0:01:09.2]} 36... Rh2
{[%clk 0:00:55.9]} 37. Kf2 {[%clk 0:01:07.9]} 37... b4 {[%clk 0:00:09.1]} 38. h6
{[%clk 0:01:08.3]} 38... c5 {[%clk 0:00:09.5]} 39. h7 {[%clk 0:01:08.9]} 39...
Rxh7 {[%clk 0:00:11.1]} 40. Bxh7 {[%clk 0:01:10]} 40... c4 {[%clk 0:00:12.4]}
41. Bg8+ {[%clk 0:01:10.9]} 41... Kc5 {[%clk 0:00:13.6]} 42. Bf8+ {[%clk
0:01:10.2]} 42... Kd4 {[%clk 0:00:14.2]} 43. Bxb4 {[%clk 0:01:09.7]} 43... c3
{[%clk 0:00:15.7]} 44. Kf3 {[%clk 0:01:06.7]} 44... Ke5 {[%clk 0:00:11.5]} 45.
g4 {[%clk 0:01:05.8]} 45... Kf6 {[%clk 0:00:11.3]} 46. Bf8 {[%clk 0:01:04.2]}
46... Kg5 {[%clk 0:00:13]} 47. Bg7 {[%clk 0:00:59.4]} 47... Kg6 {[%clk
0:00:14.9]} 48. Bxc3 {[%clk 0:00:59.9]} 48... Kh6 {[%clk 0:00:16.5]} 49. Bf7
{[%clk 0:00:48.6]} 49... Kg5 {[%clk 0:00:12.8]} 50. Bg7 {[%clk 0:00:48.7]} 50...
Kh4 {[%clk 0:00:11.6]} 51. c4 {[%clk 0:00:47.2]} 51... Kg5 {[%clk 0:00:12.4]}
52. c5 {[%clk 0:00:48.2]} 52... Kh4 {[%clk 0:00:13.7]} 53. c6 {[%clk 0:00:47]}
53... Kg5 {[%clk 0:00:15.6]} 54. c7 {[%clk 0:00:47.1]} 54... Kh4 {[%clk
0:00:17.5]} 55. Bf6+ {[%clk 0:00:30.9]} 55... Kh3 {[%clk 0:00:17.2]} 56. g5
{[%clk 0:00:32.3]} 56... Kh4 {[%clk 0:00:18.2]} 57. g6+ {[%clk 0:00:33.2]} 57...
Kh5 {[%clk 0:00:19.6]} 58. Kf4 {[%clk 0:00:28.9]} 58... Kh6 {[%clk 0:00:21.5]}
59. Be5 {[%clk 0:00:28.5]} 59... Kh5 {[%clk 0:00:22.9]} 60. Bg7 {[%clk
0:00:29.7]} 60... Kh4 {[%clk 0:00:23.8]} 61. Bf8 {[%clk 0:00:30.5]} 61... Kh5
{[%clk 0:00:25.1]} 62. Kf5 {[%clk 0:00:28.1]} 62... Kh4 {[%clk 0:00:26.1]} 63.
g7 {[%clk 0:00:29.5]} 63... Kh3 {[%clk 0:00:26.5]} 64. g8=N {[%clk 0:00:19.6]}
64... Kh4 {[%clk 0:00:27.2]} 65. Ne7 {[%clk 0:00:19.8]} 65... Kh3 {[%clk
0:00:28.5]} 66. c8=N {[%clk 0:00:20.5]} 66... Kg2 {[%clk 0:00:30.1]} 67. Nd6
{[%clk 0:00:22.4]} 67... Kf2 {[%clk 0:00:32]} 68. Ke4 {[%clk 0:00:23.3]} 68...
Ke2 {[%clk 0:00:33.9]} 69. Nd5 {[%clk 0:00:24.7]} 69... Kd2 {[%clk 0:00:35.8]}
70. Bg7 {[%clk 0:00:26.1]} 70... Kc2 {[%clk 0:00:37.7]} 71. Bc3 {[%clk
0:00:26.4]} 71... Kd1 {[%clk 0:00:39.6]} 72. Kd3 {[%clk 0:00:27.2]} 72... Kc1
{[%clk 0:00:39.9]} 73. Bh5 {[%clk 0:00:28.6]} 73... Kb1 {[%clk 0:00:40.9]} 74.
Nb4 {[%clk 0:00:30]} 74... Kc1 {[%clk 0:00:42.8]} 75. Nc4 {[%clk 0:00:29.9]}
75... Kb1 {[%clk 0:00:44.7]} 76. Bd1 {[%clk 0:00:29.1]} 76... Kc1 {[%clk
0:00:46.6]} 77. Bb3 {[%clk 0:00:28.8]} 77... Kb1 {[%clk 0:00:48.5]} 78. Bc2+
{[%clk 0:00:19.6]} 78... Kc1 {[%clk 0:00:47.9]} 79. Bb2# {[%clk 0:00:21.5]} 1-0

[Event "*** Titled Tuesday 3|2 Blitz"]
[Site "Chess.com"]
[Date "2016.06.07"]
[Round "6"]
[White "aripov96"]
[Black "Abrito99"]
[Result "0-1"]
[WhiteElo "2256"]
[BlackElo "2346"]
[TimeControl "180+2"]
[EndTime "18:14:09 PDT"]
[Termination "Abrito99 won by resignation"]

1. Nf3 {[%clk 0:03:01.9]} 1... Nf6 {[%clk 0:03:00.9]} 2. g3 {[%clk 0:03:03]}
2... g6 {[%clk 0:03:02.6]} 3. Bg2 {[%clk 0:03:03.8]} 3... Bg7 {[%clk 0:03:04.3]}
4. O-O {[%clk 0:03:05.4]} 4... d6 {[%clk 0:03:06.2]} 5. c4 {[%clk 0:03:06.7]}
5... O-O {[%clk 0:03:08.1]} 6. Nc3 {[%clk 0:03:08.1]} 6... Nbd7 {[%clk 0:03:10]}
7. d3 {[%clk 0:03:09.3]} 7... c5 {[%clk 0:03:11.1]} 8. Rb1 {[%clk 0:03:09.9]}
8... Rb8 {[%clk 0:03:12.5]} 9. a3 {[%clk 0:03:11.1]} 9... b6 {[%clk 0:03:13.9]}
10. b4 {[%clk 0:03:12.1]} 10... Bb7 {[%clk 0:03:15.5]} 11. Bb2 {[%clk
0:03:09.4]} 11... e6 {[%clk 0:03:16.1]} 12. Qb3 {[%clk 0:03:05.9]} 12... d5
{[%clk 0:03:11.2]} 13. Nd2 {[%clk 0:02:57.6]} 13... d4 {[%clk 0:03:08.6]} 14.
Na4 {[%clk 0:02:44.5]} 14... Bxg2 {[%clk 0:02:42.4]} 15. Kxg2 {[%clk 0:02:46.4]}
15... Qc7 {[%clk 0:02:43.7]} 16. Nf3 {[%clk 0:02:33.4]} 16... e5 {[%clk
0:02:43.9]} 17. Bc1 {[%clk 0:02:19.6]} 17... Qc6 {[%clk 0:02:33.6]} 18. Bg5
{[%clk 0:02:13]} 18... h6 {[%clk 0:02:33.6]} 19. Bxf6 {[%clk 0:02:13.6]} 19...
Bxf6 {[%clk 0:02:31.3]} 20. bxc5 {[%clk 0:02:11.2]} 20... bxc5 {[%clk
0:02:25.2]} 21. Qc2 {[%clk 0:02:11]} 21... Be7 {[%clk 0:02:19.7]} 22. Rb2 {[%clk
0:01:58.8]} 22... Rxb2 {[%clk 0:02:10.8]} 23. Nxb2 {[%clk 0:02:00.7]} 23... Rb8
{[%clk 0:02:11.6]} 24. Nd1 {[%clk 0:01:42.7]} 24... Qa6 {[%clk 0:01:47.2]} 25.
Qc1 {[%clk 0:01:39.6]} 25... Kg7 {[%clk 0:01:44.7]} 26. e3 {[%clk 0:01:35.8]}
26... f5 {[%clk 0:01:42.3]} 27. exd4 {[%clk 0:01:35.9]} 27... cxd4 {[%clk
0:01:44.2]} 28. Re1 {[%clk 0:01:35.7]} 28... Qa5 {[%clk 0:01:28.8]} 29. c5
{[%clk 0:01:08.9]} 29... Qxc5 {[%clk 0:00:44.3]} 30. Qxc5 {[%clk 0:01:06.9]}
30... Bxc5 {[%clk 0:00:46.2]} 31. Nxe5 {[%clk 0:01:04.6]} 31... Re8 {[%clk
0:00:47.1]} 32. f4 {[%clk 0:01:00.6]} 32... Bxa3 {[%clk 0:00:44.9]} 33. Nf2
{[%clk 0:00:49.9]} 33... Nxe5 {[%clk 0:00:32]} 34. fxe5 {[%clk 0:00:48.3]} 34...
Bb4 {[%clk 0:00:31.3]} 35. Rc1 {[%clk 0:00:41.6]} 35... Bc3 {[%clk 0:00:32.3]}
36. Nd1 {[%clk 0:00:40.4]} 36... Rxe5 {[%clk 0:00:26.4]} 37. Nxc3 {[%clk
0:00:39.8]} 37... dxc3 {[%clk 0:00:28.3]} 38. Rxc3 {[%clk 0:00:41]} 38... Re7
{[%clk 0:00:28.3]} 39. Kf3 {[%clk 0:00:38]} 39... Kf6 {[%clk 0:00:29.6]} 40.
Rc6+ {[%clk 0:00:38.4]} 40... Kg5 {[%clk 0:00:30.3]} 41. h4+ {[%clk 0:00:38.5]}
41... Kh5 {[%clk 0:00:31.7]} 42. d4 {[%clk 0:00:29.5]} 42... g5 {[%clk
0:00:27.3]} 43. d5 {[%clk 0:00:20.3]} 43... Re1 {[%clk 0:00:17.1]} 44. d6 {[%clk
0:00:14.1]} 44... Rd1 {[%clk 0:00:17.8]} 45. hxg5 {[%clk 0:00:14.7]} 45... hxg5
{[%clk 0:00:19.2]} 46. Rc5 {[%clk 0:00:14.6]} 46... Rd3+ {[%clk 0:00:17]} 47.
Ke2 {[%clk 0:00:13.9]} 47... Rxd6 {[%clk 0:00:18]} 48. Rxf5 {[%clk 0:00:14.5]}
48... Kg4 {[%clk 0:00:19.6]} 49. Ra5 {[%clk 0:00:14.8]} 49... Rd7 {[%clk
0:00:15.2]} 50. Kf2 {[%clk 0:00:14.4]} 50... Rd2+ {[%clk 0:00:15.6]} 51. Kg1
{[%clk 0:00:14.7]} 51... Rd7 {[%clk 0:00:12.9]} 52. Kf2 {[%clk 0:00:14.5]} 52...
Rd2+ {[%clk 0:00:11.1]} 53. Ke3 {[%clk 0:00:15.5]} 53... Rg2 {[%clk 0:00:09.2]}
54. Rxa7 {[%clk 0:00:14.8]} 54... Kxg3 {[%clk 0:00:10.7]} 55. Rg7 {[%clk
0:00:13.2]} 55... g4 {[%clk 0:00:11.9]} 56. Rb7 {[%clk 0:00:10.2]} 56... Rf2
{[%clk 0:00:12]} 57. Rb4 {[%clk 0:00:10.8]} 57... Rf3+ {[%clk 0:00:13]} 58. Ke2
{[%clk 0:00:12.1]} 58... Rf8 {[%clk 0:00:12]} 59. Re4 {[%clk 0:00:11]} 59... Kh3
{[%clk 0:00:13.2]} 60. Re7 {[%clk 0:00:04.6]} 60... g3 {[%clk 0:00:13.3]} 61.
Rh7+ {[%clk 0:00:05.6]} 61... Kg2 {[%clk 0:00:14.8]} 62. Ke3 {[%clk 0:00:05.1]}
62... Kg1 {[%clk 0:00:15.5]} 63. Rg7 {[%clk 0:00:06.6]} 63... g2 {[%clk
0:00:16.9]} 64. Ke2 {[%clk 0:00:08.2]} 64... Re8+ {[%clk 0:00:12.1]} 65. Kf3
{[%clk 0:00:09.3]} 65... Kf1 {[%clk 0:00:13]} 66. Rxg2 {[%clk 0:00:09.6]} 66...
Rf8+ {[%clk 0:00:13.8]} 67. Kg3 {[%clk 0:00:08]} 67... Rg8+ {[%clk 0:00:15.1]}
68. Kh3 {[%clk 0:00:07.7]} 68... Rxg2 {[%clk 0:00:17]} 69. Kh4 {[%clk
0:00:09.1]} 69... Kf2 {[%clk 0:00:18.9]} 70. Kh5 {[%clk 0:00:10.7]} 70... Kf3
{[%clk 0:00:20.7]} 71. Kh4 {[%clk 0:00:11.8]} 71... Kf4 {[%clk 0:00:22.3]} 72.
Kh3 {[%clk 0:00:13.1]} 72... Rg8 {[%clk 0:00:24.2]} 73. Kh2 {[%clk 0:00:13.2]}
73... Kf3 {[%clk 0:00:25.6]} 0-1

[Event "*** Titled Tuesday 3|2 Blitz"]
[Site "Chess.com"]
[Date "2016.06.07"]
[Round "6"]
[White "Aguiar94"]
[Black "saraswathii"]
[Result "1/2-1/2"]
[WhiteElo "2336"]
[BlackElo "1981"]
[TimeControl "180+2"]
[EndTime "18:16:14 PDT"]
[Termination "Game drawn - insufficient material"]

1. e4 {[%clk 0:03:01.9]} 1... c5 {[%clk 0:02:55.6]} 2. Nf3 {[%clk 0:03:02.9]}
2... e6 {[%clk 0:02:56.6]} 3. d4 {[%clk 0:03:03.7]} 3... cxd4 {[%clk 0:02:57.2]}
4. Nxd4 {[%clk 0:03:05.4]} 4... Nf6 {[%clk 0:02:57.9]} 5. Nc3 {[%clk 0:03:06.4]}
5... Nc6 {[%clk 0:02:47.2]} 6. Nxc6 {[%clk 0:03:06.8]} 6... bxc6 {[%clk
0:02:47.6]} 7. e5 {[%clk 0:03:08.7]} 7... Nd5 {[%clk 0:02:47.8]} 8. Ne4 {[%clk
0:03:10.3]} 8... f5 {[%clk 0:02:47.8]} 9. exf6 {[%clk 0:03:10.8]} 9... Nxf6
{[%clk 0:02:38]} 10. Nd6+ {[%clk 0:03:11.9]} 10... Bxd6 {[%clk 0:02:37.2]} 11.
Qxd6 {[%clk 0:03:13.8]} 11... Qa5+ {[%clk 0:02:31.6]} 12. Bd2 {[%clk 0:03:13.9]}
12... Qd5 {[%clk 0:02:32]} 13. Bb4 {[%clk 0:03:14.5]} 13... Qxd6 {[%clk
0:02:31.3]} 14. Bxd6 {[%clk 0:03:16.4]} 14... Ne4 {[%clk 0:02:32.4]} 15. Ba3
{[%clk 0:03:13.5]} 15... d5 {[%clk 0:02:32.7]} 16. Bd3 {[%clk 0:03:01]} 16...
Nf6 {[%clk 0:02:31.3]} 17. f4 {[%clk 0:03:00.2]} 17... Kf7 {[%clk 0:02:24.3]}
18. Kd2 {[%clk 0:02:44.8]} 18... a5 {[%clk 0:02:20.8]} 19. c4 {[%clk 0:02:26.2]}
19... Ba6 {[%clk 0:02:12.9]} 20. b3 {[%clk 0:02:26.5]} 20... Rhd8 {[%clk
0:02:06.7]} 21. Ke3 {[%clk 0:02:25.6]} 21... Rd7 {[%clk 0:01:49.4]} 22. Bc5
{[%clk 0:01:44.6]} 22... Rad8 {[%clk 0:01:35.7]} 23. Be2 {[%clk 0:01:44.4]}
23... Ne4 {[%clk 0:01:08.1]} 24. Bb6 {[%clk 0:01:40.9]} 24... Ra8 {[%clk
0:00:55]} 25. Rhc1 {[%clk 0:01:22.3]} 25... Nf6 {[%clk 0:00:43.7]} 26. g4 {[%clk
0:01:15.9]} 26... dxc4 {[%clk 0:00:38.6]} 27. bxc4 {[%clk 0:01:17.8]} 27... a4
{[%clk 0:00:21.4]} 28. g5 {[%clk 0:01:13.7]} 28... Ne8 {[%clk 0:00:21.4]} 29.
Bd4 {[%clk 0:01:15.2]} 29... Nd6 {[%clk 0:00:21.7]} 30. Bd3 {[%clk 0:01:13.7]}
30... Rad8 {[%clk 0:00:18.3]} 31. Be5 {[%clk 0:01:11.3]} 31... Nf5+ {[%clk
0:00:17.5]} 32. Bxf5 {[%clk 0:01:11]} 32... exf5 {[%clk 0:00:19.4]} 33. Rc3
{[%clk 0:01:10.6]} 33... Rd2 {[%clk 0:00:19.5]} 34. h4 {[%clk 0:00:46.1]} 34...
Bxc4 {[%clk 0:00:19.2]} 35. h5 {[%clk 0:00:37]} 35... R8d3+ {[%clk 0:00:16.1]}
36. Rxd3 {[%clk 0:00:37.4]} 36... Rxd3+ {[%clk 0:00:17.6]} 37. Kf2 {[%clk
0:00:39.3]} 37... Rh3 {[%clk 0:00:17]} 38. g6+ {[%clk 0:00:38.4]} 38... hxg6
{[%clk 0:00:15.8]} 39. hxg6+ {[%clk 0:00:40.3]} 39... Kxg6 {[%clk 0:00:12]} 40.
Rg1+ {[%clk 0:00:39.1]} 40... Kf7 {[%clk 0:00:13]} 41. Rxg7+ {[%clk 0:00:38.6]}
41... Ke6 {[%clk 0:00:14.2]} 42. Rg6+ {[%clk 0:00:40.2]} 42... Kd5 {[%clk
0:00:14.8]} 43. Rd6+ {[%clk 0:00:38.9]} 43... Kc5 {[%clk 0:00:15.7]} 44. Rf6
{[%clk 0:00:37.1]} 44... Rh2+ {[%clk 0:00:15.5]} 45. Kg3 {[%clk 0:00:37.2]}
45... Rxa2 {[%clk 0:00:15.6]} 46. Rxf5 {[%clk 0:00:38.3]} 46... Bd3 {[%clk
0:00:16.3]} 47. Rf7 {[%clk 0:00:35.7]} 47... Be4 {[%clk 0:00:16.6]} 48. f5
{[%clk 0:00:34.9]} 48... Kd5 {[%clk 0:00:14.7]} 49. Bg7 {[%clk 0:00:28.1]} 49...
Rg2+ {[%clk 0:00:13.5]} 50. Kh3 {[%clk 0:00:27.6]} 50... a3 {[%clk 0:00:06.5]}
51. Bh8 {[%clk 0:00:20.4]} 51... Rf2 {[%clk 0:00:07]} 52. Kg4 {[%clk 0:00:20.2]}
52... a2 {[%clk 0:00:07.6]} 53. Rd7+ {[%clk 0:00:19.8]} 53... Kc5 {[%clk
0:00:08.4]} 54. Bd4+ {[%clk 0:00:19.4]} 54... Kc4 {[%clk 0:00:09.7]} 55. Bxf2
{[%clk 0:00:19.2]} 55... a1=Q {[%clk 0:00:10.2]} 56. Kf4 {[%clk 0:00:18.3]}
56... Bd5 {[%clk 0:00:10.3]} 57. Be3 {[%clk 0:00:17.7]} 57... Qf1+ {[%clk
0:00:11]} 58. Ke5 {[%clk 0:00:18.3]} 58... Qf3 {[%clk 0:00:11.9]} 59. Bg5 {[%clk
0:00:17.8]} 59... Qe4+ {[%clk 0:00:12.7]} 60. Kf6 {[%clk 0:00:18.9]} 60... c5
{[%clk 0:00:13.1]} 61. Re7 {[%clk 0:00:19]} 61... Qd4+ {[%clk 0:00:13.5]} 62.
Kg6 {[%clk 0:00:19.4]} 62... Be4 {[%clk 0:00:13.9]} 63. Bf6 {[%clk 0:00:17.8]}
63... Qd3 {[%clk 0:00:14.5]} 64. Kg5 {[%clk 0:00:17.6]} 64... Bxf5 {[%clk
0:00:14.9]} 65. Kf4 {[%clk 0:00:19.2]} 65... Be4 {[%clk 0:00:15.3]} 66. Rxe4+
{[%clk 0:00:19.1]} 66... Kd5 {[%clk 0:00:15.9]} 67. Re5+ {[%clk 0:00:19.4]}
67... Kd6 {[%clk 0:00:16.9]} 68. Re3 {[%clk 0:00:20.2]} 68... Qd2 {[%clk
0:00:17.1]} 69. Ke4 {[%clk 0:00:19.1]} 69... c4 {[%clk 0:00:18]} 70. Bd4 {[%clk
0:00:19.2]} 70... Qc2+ {[%clk 0:00:17.7]} 71. Kf4 {[%clk 0:00:19.9]} 71... Kd5
{[%clk 0:00:18.9]} 72. Bf6 {[%clk 0:00:20.1]} 72... Qf2+ {[%clk 0:00:19.6]} 73.
Rf3 {[%clk 0:00:21.6]} 73... Qh2+ {[%clk 0:00:18.8]} 74. Kf5 {[%clk 0:00:21.7]}
74... Qh5+ {[%clk 0:00:19.1]} 75. Kf4 {[%clk 0:00:23.3]} 75... Qh6+ {[%clk
0:00:18.6]} 76. Kg4 {[%clk 0:00:23.4]} 76... Qg6+ {[%clk 0:00:19.4]} 77. Bg5
{[%clk 0:00:24.6]} 77... Qe4+ {[%clk 0:00:19.6]} 78. Bf4 {[%clk 0:00:25.6]}
78... Qe2 {[%clk 0:00:19.2]} 79. Kg3 {[%clk 0:00:21.7]} 79... Ke4 {[%clk
0:00:17.1]} 80. Rf2 {[%clk 0:00:19.7]} 80... Qe1 {[%clk 0:00:17.4]} 81. Bd2
{[%clk 0:00:20.6]} 81... Qd1 {[%clk 0:00:15]} 82. Bg5 {[%clk 0:00:16.6]} 82...
c3 {[%clk 0:00:15]} 83. Rf4+ {[%clk 0:00:16.6]} 83... Ke5 {[%clk 0:00:15.2]} 84.
Bf6+ {[%clk 0:00:16.6]} 84... Kd5 {[%clk 0:00:09.3]} 85. Bxc3 {[%clk 0:00:17.4]}
85... Qd3+ {[%clk 0:00:09.8]} 86. Rf3 {[%clk 0:00:18.1]} 86... Qg6+ {[%clk
0:00:10.7]} 87. Kf2 {[%clk 0:00:18.1]} 87... Kc4 {[%clk 0:00:11.4]} 88. Bf6
{[%clk 0:00:18.1]} 88... Kd5 {[%clk 0:00:10.7]} 89. Bc3 {[%clk 0:00:17.1]} 89...
Ke4 {[%clk 0:00:11.5]} 90. Re3+ {[%clk 0:00:18.3]} 90... Kd5 {[%clk 0:00:12.4]}
91. Rf3 {[%clk 0:00:18.3]} 91... Qg4 {[%clk 0:00:13.4]} 92. Ke3 {[%clk
0:00:16.2]} 92... Kc4 {[%clk 0:00:13.1]} 93. Rf4+ {[%clk 0:00:15.9]} 93... Qxf4+
{[%clk 0:00:14.3]} 94. Kxf4 {[%clk 0:00:17.8]} 1/2-1/2